bitfinex/quotes_BTCUSD_20251009
["timestamp","ask_amount","ask_price","bid_price","bid_amount"]
[1760032961011,0.00050499,120820.0,120810.0,0.82831317]
[1760032961243,0.00050499,120820.0,120810.0,1.07207317]
[1760032961499,0.00050499,120820.0,120810.0,0.82831317]
[1760032961709,0.00050499,120820.0,120810.0,1.07207317]
[1760032962322,0.00050499,120820.0,120810.0,1.07307317]
[1760032962530,0.00050499,120820.0,120810.0,1.07407317]
[1760032962739,0.00050499,120820.0,120810.0,1.07307317]
[1760032962954,0.00050499,120820.0,120810.0,0.74323317]
[1760032963193,0.00050499,120820.0,120810.0,0.82927317]
[1760032963630,0.00050499,120820.0,120810.0,1.07283317]
[1760032964035,0.00050499,120820.0,120810.0,1.07383317]
[1760032964732,0.00050499,120820.0,120810.0,0.83027317]
[1760032964937,0.00050499,120820.0,120810.0,1.07383317]
[1760032965364,0.00050499,120820.0,120810.0,0.83027317]
[1760032965574,0.00050499,120820.0,120810.0,1.07379317]
[1760032965795,0.00050499,120820.0,120810.0,1.09879316]
[1760032967414,0.00050499,120820.0,120810.0,1.09855316]
[1760032967643,0.00050499,120820.0,120810.0,1.19855315]
[1760032968316,0.00050499,120820.0,120810.0,1.54071315]
[1760032968552,0.00050499,120820.0,120810.0,0.86823315]
[1760032968797,0.00050499,120820.0,120810.0,1.54267315]
[1760032968992,0.00050499,120820.0,120810.0,1.54167315]
[1760032969190,0.00050499,120820.0,120810.0,1.54267315]
[1760032969947,0.00050499,120820.0,120810.0,1.54255315]
[1760032970159,0.00050499,120820.0,120810.0,1.54155315]
[1760032970388,0.00050499,120820.0,120810.0,1.54255315]
[1760032970592,0.00050499,120820.0,120810.0,1.29947315]
[1760032970873,0.00138386,120850.0,120840.0,0.53566]
[1760032971087,0.00138386,120850.0,120840.0,0.73564245]
[1760032971317,0.00138386,120850.0,120840.0,0.97860245]
[1760032971548,0.00138386,120850.0,120840.0,0.85541245]
[1760032971792,0.00138386,120850.0,120840.0,1.09841245]
[1760032972218,0.00138386,120850.0,120840.0,1.09837245]
[1760032972609,0.00138386,120850.0,120840.0,0.85541245]
[1760032972822,0.00138386,120850.0,120840.0,1.09833245]
[1760032973071,0.00138386,120850.0,120840.0,0.85541245]
[1760032973284,0.00138386,120850.0,120840.0,1.09829245]
[1760032973501,0.00138386,120850.0,120840.0,0.76937245]
[1760032973722,0.04031846,120870.0,120860.0,0.50548072]
[1760032973944,0.04031846,120870.0,120860.0,0.98194278]
[1760032974186,0.23992136,120880.0,120860.0,0.98194278]
[1760032974399,0.23992136,120880.0,120870.0,0.08312206]
[1760032974605,0.23992136,120880.0,120870.0,0.14136206]
[1760032974845,0.23992136,120880.0,120870.0,0.20333525]
[1760032975230,0.29765136,120880.0,120870.0,0.44601525]
[1760032975447,0.17372633,120880.0,120870.0,0.44601525]
[1760032976088,0.17372633,120880.0,120870.0,0.50754525]
[1760032976499,0.17631645,120880.0,120870.0,0.44601525]
[1760032976717,0.23404645,120880.0,120870.0,0.20333525]
[1760032976918,0.36757645,120880.0,120870.0,0.38769525]
[1760032977120,0.36757645,120880.0,120870.0,0.08312206]
[1760032978831,0.16549441,120850.0,120840.0,0.09287724]
[1760032979049,0.35675441,120850.0,120840.0,0.4185193]
[1760032979271,0.35675441,120850.0,120840.0,0.35646245]
[1760032979698,0.26711441,120850.0,120840.0,0.35646245]
[1760032979923,0.26711441,120850.0,120840.0,0.11394245]
[1760032980143,0.35675441,120850.0,120840.0,0.08317245]
[1760032980568,0.35675441,120850.0,120840.0,5.039e-05]
[1760032981004,1.03094988,120850.0,120840.0,5.039e-05]
[1760032981889,1.37094988,120850.0,120840.0,5.039e-05]
[1760032982331,1.45686988,120850.0,120840.0,5.039e-05]
[1760032982995,1.21442988,120850.0,120840.0,5.039e-05]
[1760032983276,1.12842988,120850.0,120840.0,5.039e-05]
[1760032983488,1.02519441,120850.0,120840.0,5.039e-05]
[1760032983694,0.78279441,120850.0,120840.0,5.039e-05]
[1760032983901,1.02519441,120850.0,120840.0,5.039e-05]
[1760032984114,0.69675441,120850.0,120840.0,5.039e-05]
[1760032984328,0.94011083,120850.0,120840.0,5.039e-05]
[1760032984976,0.69779083,120850.0,120840.0,5.039e-05]
[1760032985191,0.94011083,120850.0,120840.0,5.039e-05]
[1760032985606,1.3717863,120850.0,120840.0,5.039e-05]
[1760032986256,1.4517831,120850.0,120840.0,5.039e-05]
[1760032986482,1.4516631,120850.0,120840.0,5.039e-05]
[1760032986919,1.4517031,120850.0,120840.0,5.039e-05]
[1760032987143,1.35594315,120850.0,120840.0,5.039e-05]
[1760032987379,2.05485522,120850.0,120840.0,5.039e-05]
[1760032988107,2.17701587,120850.0,120840.0,5.039e-05]
[1760032988974,0.94642495,120850.0,120840.0,5.039e-05]
[1760032989187,1.36198296,120850.0,120840.0,5.039e-05]
[1760032989398,1.60410296,120850.0,120840.0,5.039e-05]
[1760032989616,2.03577843,120850.0,120840.0,5.039e-05]
[1760032990046,2.16077841,120850.0,120840.0,5.039e-05]
[1760032990517,2.24077521,120850.0,120840.0,5.039e-05]
[1760032991196,2.24073521,120850.0,120840.0,5.039e-05]
[1760032991403,1.99865521,120850.0,120840.0,5.039e-05]
[1760032991609,2.26277587,120850.0,120840.0,5.039e-05]
[1760032992246,2.24061521,120850.0,120840.0,5.039e-05]
[1760032992675,1.91261521,120850.0,120840.0,5.039e-05]
[1760032992893,1.27594296,120850.0,120840.0,5.039e-05]
[1760032993105,1.60386296,120850.0,120840.0,5.039e-05]
[1760032993317,0.78091289,120850.0,120840.0,5.039e-05]
[1760032993567,1.4573863,120850.0,120840.0,5.039e-05]
[1760032993780,1.1173863,120850.0,120840.0,5.039e-05]
[1760032993997,1.4573863,120850.0,120840.0,5.039e-05]
[1760032994703,1.2155063,120850.0,120840.0,5.039e-05]
[1760032994918,1.4573463,120850.0,120840.0,5.039e-05]
[1760032995128,1.5373431,120850.0,120840.0,5.039e-05]
[1760032995358,1.65057706,120850.0,120840.0,5.039e-05]
[1760032997031,1.84045253,120850.0,120840.0,5.039e-05]
[1760032997266,2.19990094,120850.0,120840.0,5.039e-05]
[1760032997449,1.95818094,120850.0,120840.0,5.039e-05]
[1760032997706,2.22486093,120850.0,120840.0,5.039e-05]
[1760032998352,2.24024894,120850.0,120840.0,5.039e-05]
[1760032998559,1.93329413,120850.0,120840.0,5.039e-05]
[1760032998767,2.17501413,120850.0,120840.0,5.039e-05]
[1760032998970,2.15962612,120850.0,120840.0,5.039e-05]
[1760032999177,2.17501467,120850.0,120840.0,5.039e-05]
[1760032999385,2.58452948,120850.0,120840.0,5.039e-05]
[1760033000441,2.15281401,120850.0,120840.0,5.039e-05]
[1760033000644,2.05273402,120850.0,120840.0,5.039e-05]
[1760033001097,2.24280949,120850.0,120840.0,5.039e-05]
[1760033001308,2.50653015,120850.0,120840.0,5.039e-05]
[1760033001523,2.28067552,120850.0,120840.0,5.039e-05]
[1760033001765,0.16557662,120790.0,120780.0,0.03077]
[1760033001973,0.16560404,120770.0,120760.0,0.20961827]
[1760033002184,0.16560404,120770.0,120760.0,0.35534532]
[1760033002419,0.16560404,120770.0,120760.0,0.18972757]
[1760033002642,0.16560404,120770.0,120760.0,0.35534532]
[1760033003073,0.16560404,120770.0,120760.0,0.35634532]
[1760033003888,0.21300032,120780.0,120760.0,0.35634532]
[1760033004089,0.21300032,120780.0,120770.0,0.2487261]
[1760033004294,0.21300032,120780.0,120770.0,0.3108261]
[1760033004497,0.21300032,120780.0,120770.0,0.14522206]
[1760033004697,0.27261032,120780.0,120770.0,0.14522206]
[1760033004913,0.10702,120780.0,120770.0,0.3108261]
[1760033005128,0.04741,120800.0,120790.0,0.16557662]
[1760033005334,0.27258291,120800.0,120790.0,0.17599206]
[1760033006168,0.21300892,120820.0,120790.0,0.40289868]
[1760033006375,0.1655492,120810.0,120800.0,0.31001497]
[1760033006585,0.1655492,120810.0,120800.0,0.37211497]
[1760033007186,0.2251592,120810.0,120800.0,0.14522206]
[1760033007388,0.2251592,120810.0,120800.0,0.1462588]
[1760033007600,0.04741,120820.0,120810.0,0.1655492]
[1760033007812,0.22121174,120830.0,120810.0,0.40267126]
[1760033008015,0.22121174,120830.0,120820.0,0.08312206]
[1760033008438,0.28082174,120830.0,120820.0,0.08312206]
[1760033008609,0.37251174,120830.0,120820.0,0.08312206]
[1760033009063,0.1655355,120820.0,120800.0,0.00050499]
[1760033009202,0.4545055,120820.0,120810.0,0.08312206]
[1760033009430,0.6058055,120820.0,120810.0,0.08312206]
[1760033010044,0.3642455,120820.0,120810.0,0.08312206]
[1760033010254,0.6058055,120820.0,120810.0,0.08312206]
[1760033010667,0.3642455,120820.0,120810.0,0.08312206]
[1760033010884,0.5140755,120820.0,120810.0,0.17262206]
[1760033011284,0.5140755,120820.0,120810.0,0.11052206]
[1760033011952,0.2725555,120820.0,120810.0,0.11052206]
[1760033012188,0.22121174,120830.0,120810.0,0.39634126]
[1760033012397,0.17380174,120830.0,120810.0,0.39634126]
[1760033012621,0.1655355,120820.0,120810.0,0.39634126]
[1760033013176,0.1655355,120820.0,120810.0,0.39685959]
[1760033013372,0.1655355,120820.0,120810.0,0.58012959]
[1760033014750,0.04879401,120840.0,120820.0,0.1655355]
[1760033014956,0.16689264,120840.0,120830.0,0.17347206]
[1760033015739,0.00138401,120840.0,120830.0,0.63844386]
[1760033016298,0.00138401,120840.0,120830.0,0.70041895]
[1760033016955,0.00138401,120840.0,120830.0,0.79913895]
[1760033017162,0.00138401,120840.0,120830.0,1.07057085]
[1760033017370,0.00138401,120840.0,120830.0,1.09540912]
[1760033017784,0.00138401,120840.0,120830.0,0.85412912]
[1760033018219,0.00138401,120840.0,120830.0,1.09540912]
[1760033018417,0.00138401,120840.0,120830.0,1.18240912]
[1760033019422,0.00138401,120840.0,120830.0,1.18340912]
[1760033020240,0.00138401,120840.0,120830.0,1.18324912]
[1760033020446,0.00138401,120840.0,120830.0,0.85612912]
[1760033020880,0.00138401,120840.0,120830.0,1.18324912]
[1760033022931,0.00138401,120840.0,120830.0,0.85612912]
[1760033023170,0.00138401,120840.0,120830.0,1.18324912]
[1760033024156,0.00138401,120840.0,120830.0,0.82597722]
[1760033024326,0.00138401,120840.0,120830.0,1.15305722]
[1760033024924,0.00138401,120840.0,120830.0,1.18320912]
[1760033027138,0.00138401,120840.0,120830.0,0.85612912]
[1760033027368,0.00138401,120840.0,120830.0,1.18320912]
[1760033027611,0.00138401,120840.0,120830.0,0.85612912]
[1760033027859,0.00138401,120840.0,120830.0,0.82597722]
[1760033028072,0.16689211,120840.0,120830.0,0.62269715]
[1760033028297,0.16689211,120840.0,120830.0,0.48900895]
[1760033028298,0.00138401,120840.0,120830.0,0.48900895]
[1760033028507,0.16689211,120840.0,120830.0,0.73004895]
[1760033028720,0.22836211,120840.0,120830.0,0.23744715]
[1760033028932,0.36387211,120840.0,120830.0,0.35693206]
[1760033029179,0.36387211,120840.0,120830.0,0.11489206]
[1760033029386,0.36387211,120840.0,120830.0,0.35493206]
[1760033029594,0.27209211,120840.0,120830.0,0.11389206]
[1760033029797,0.36387211,120840.0,120830.0,0.35493206]
[1760033030005,0.36387211,120840.0,120830.0,0.11389206]
[1760033030225,0.36387211,120840.0,120830.0,0.08312206]
[1760033030433,0.36387211,120840.0,120830.0,0.32416206]
[1760033034040,0.36387211,120840.0,120830.0,0.08312206]
[1760033034239,0.36387211,120840.0,120830.0,0.32416206]
[1760033035062,0.16689211,120840.0,120830.0,0.33859386]
[1760033035264,0.16689211,120840.0,120830.0,0.63623386]
[1760033035265,0.00138401,120840.0,120830.0,0.63623386]
[1760033035677,0.00138401,120840.0,120830.0,0.39519386]
[1760033035895,0.00138401,120840.0,120830.0,0.63623386]
[1760033036776,0.00138401,120840.0,120830.0,0.39519386]
[1760033036970,0.00138401,120840.0,120830.0,0.63623386]
[1760033037526,0.00138401,120840.0,120830.0,0.63619386]
[1760033038950,0.00138401,120840.0,120830.0,0.73519386]
[1760033039152,0.00138401,120840.0,120830.0,0.97619386]
[1760033039397,0.00138401,120840.0,120830.0,1.00634576]
[1760033039811,0.00138401,120840.0,120830.0,1.03118331]
[1760033040027,0.00138401,120840.0,120830.0,0.79018331]
[1760033040273,0.00138401,120840.0,120830.0,1.03118331]
[1760033040506,0.00138401,120840.0,120830.0,0.79018331]
[1760033040728,0.00138401,120840.0,120830.0,0.76003141]
[1760033040918,0.00138401,120840.0,120830.0,0.82123386]
[1760033041095,0.00138401,120840.0,120830.0,1.06223386]
[1760033041242,0.00138401,120840.0,120830.0,0.97719386]
[1760033041443,0.00138401,120840.0,120830.0,0.51407206]
[1760033041444,0.16689211,120840.0,120830.0,0.51407206]
[1760033041657,0.27209211,120840.0,120830.0,0.11332206]
[1760033041859,0.36387211,120840.0,120830.0,0.08312206]
[1760033042065,0.36387211,120840.0,120830.0,0.32412206]
[1760033042897,0.27209211,120840.0,120830.0,0.35176206]
[1760033043135,0.36484211,120840.0,120830.0,0.35176206]
[1760033044208,0.36484211,120840.0,120830.0,0.11076206]
[1760033044440,0.36484211,120840.0,120830.0,0.32412206]
[1760033047136,0.36484211,120840.0,120830.0,0.08312206]
[1760033047766,0.1655355,120820.0,120810.0,0.26811833]
[1760033047973,0.3624455,120820.0,120810.0,0.32464039]
[1760033048196,0.2696955,120820.0,120810.0,0.40922039]
[1760033049133,0.2696955,120820.0,120810.0,0.57476959]
[1760033049341,0.2696955,120820.0,120810.0,0.40922039]
[1760033049752,0.2696955,120820.0,120810.0,0.16822039]
[1760033049914,0.2696955,120820.0,120810.0,0.57476959]
[1760033050090,0.3624455,120820.0,120810.0,0.08364039]
[1760033052477,0.3624455,120820.0,120810.0,0.00051833]
[1760033053143,0.10416,120820.0,120810.0,0.30636959]
[1760033053349,0.2696955,120820.0,120810.0,0.16822039]
[1760033053555,0.3624455,120820.0,120810.0,0.11104039]
[1760033053998,0.2696955,120820.0,120810.0,0.11104039]
[1760033054462,0.3624455,120820.0,120810.0,0.11104039]
[1760033054982,0.3624455,120820.0,120810.0,0.00051833]
[1760033055226,0.6034455,120820.0,120810.0,0.00051833]
[1760033055673,0.3624455,120820.0,120810.0,0.00051833]
[1760033055811,0.6034455,120820.0,120810.0,0.00051833]
[1760033057096,0.3624455,120820.0,120810.0,0.00051833]
[1760033057255,0.6034455,120820.0,120810.0,0.00051833]
[1760033057497,0.3624455,120820.0,120810.0,0.00051833]
[1760033057723,0.6034455,120820.0,120810.0,0.00051833]
[1760033059376,0.3624455,120820.0,120810.0,0.00051833]
[1760033059784,0.6034455,120820.0,120810.0,0.00051833]
[1760033059995,0.3624455,120820.0,120810.0,0.00051833]
[1760033060230,0.6034455,120820.0,120810.0,0.00051833]
[1760033062977,0.3624455,120820.0,120810.0,0.00051833]
[1760033063201,0.5106955,120820.0,120810.0,0.02791833]
[1760033063414,0.5106955,120820.0,120810.0,0.00051833]
[1760033063619,0.6034455,120820.0,120810.0,0.00051833]
[1760033063822,0.2696955,120820.0,120810.0,0.00051833]
[1760033064048,0.30093408,120830.0,120810.0,0.35032451]
[1760033064265,0.1655355,120820.0,120810.0,0.30568753]
[1760033064512,0.2270455,120820.0,120810.0,0.33376959]
[1760033065190,0.2696955,120820.0,120810.0,0.16822039]
[1760033065638,0.30093408,120830.0,120810.0,0.16822039]
[1760033065861,0.20818408,120830.0,120820.0,0.08312206]
[1760033066079,0.20818408,120830.0,120820.0,0.14030206]
[1760033066285,0.26969408,120830.0,120820.0,0.14030206]
[1760033066726,0.1655218,120830.0,120820.0,0.36087756]
[1760033066929,0.00138401,120840.0,120820.0,0.36087756]
[1760033067137,0.00138401,120840.0,120830.0,0.2482018]
[1760033067352,0.00138401,120840.0,120830.0,0.33132386]
[1760033067577,0.00138401,120840.0,120830.0,0.62946386]
[1760033068340,0.16689211,120840.0,120830.0,0.62946386]
[1760033068703,0.16689211,120840.0,120830.0,0.38850386]
[1760033068902,0.16689211,120840.0,120830.0,0.57442386]
[1760033069104,0.00138401,120840.0,120830.0,0.38850386]
[1760033069311,0.00138401,120840.0,120830.0,0.62946386]
[1760033069757,0.00138401,120840.0,120830.0,0.6419058]
[1760033069935,0.00138401,120840.0,120830.0,0.4009458]
[1760033070146,0.00138401,120840.0,120830.0,0.6419058]
[1760033071583,0.00138401,120840.0,120830.0,0.9819058]
[1760033072018,0.17055616,120860.0,120840.0,0.16549501]
[1760033072204,0.27471616,120860.0,120850.0,0.40555206]
[1760033072434,0.17055616,120860.0,120850.0,0.40555206]
[1760033072601,0.23310227,120860.0,120850.0,0.16463206]
[1760033072794,0.27466227,120860.0,120850.0,0.30858647]
[1760033073153,0.17159227,120860.0,120850.0,0.16742206]
[1760033073359,0.17159227,120860.0,120850.0,0.16750576]
[1760033073570,0.22683227,120860.0,120850.0,0.16750576]
[1760033074183,0.00103611,120860.0,120850.0,0.33300017]
[1760033074385,0.16651683,120860.0,120850.0,0.38497017]
[1760033074625,0.16651683,120860.0,120850.0,0.62589017]
[1760033074826,0.00103611,120860.0,120850.0,0.62589017]
[1760033075039,0.16651683,120860.0,120850.0,0.62589017]
[1760033076606,0.00103611,120860.0,120850.0,0.38497017]
[1760033076818,0.00103611,120860.0,120850.0,0.62585017]
[1760033077020,0.16651683,120860.0,120850.0,0.62585017]
[1760033077235,0.16651683,120860.0,120850.0,0.38497017]
[1760033077579,0.16651683,120860.0,120850.0,0.62585017]
[1760033079854,0.16651683,120860.0,120850.0,0.57388017]
[1760033080898,0.00103611,120860.0,120850.0,0.62585017]
[1760033081099,0.16651683,120860.0,120850.0,0.62585017]
[1760033081536,0.22175683,120860.0,120850.0,0.33300017]
[1760033081764,0.26331683,120860.0,120850.0,0.57384017]
[1760033082185,0.26331683,120860.0,120850.0,0.10753576]
[1760033082420,0.26331683,120860.0,120850.0,0.51387017]
[1760033082607,0.26331683,120860.0,120850.0,0.34837576]
[1760033082813,0.34878683,120860.0,120850.0,0.34837576]
[1760033083077,0.40824427,120860.0,120850.0,8.37e-05]
[1760033083240,1.02115258,120860.0,120850.0,8.37e-05]
[1760033083441,0.58962683,120860.0,120850.0,8.37e-05]
[1760033084331,0.34878683,120860.0,120850.0,8.37e-05]
[1760033084537,0.58962683,120860.0,120850.0,8.37e-05]
[1760033084984,0.58958683,120860.0,120850.0,8.37e-05]
[1760033086998,0.34878683,120860.0,120850.0,8.37e-05]
[1760033087200,0.58958683,120860.0,120850.0,8.37e-05]
[1760033087458,0.34878683,120860.0,120850.0,8.37e-05]
[1760033087797,0.58958683,120860.0,120850.0,8.37e-05]
[1760033088002,0.34878683,120860.0,120850.0,8.37e-05]
[1760033088205,0.58958683,120860.0,120850.0,8.37e-05]
[1760033090750,0.34878683,120860.0,120850.0,8.37e-05]
[1760033090984,0.26331683,120860.0,120850.0,0.16813576]
[1760033091191,0.16651683,120860.0,120850.0,0.16813576]
[1760033091401,0.26800683,120860.0,120850.0,0.16813576]
[1760033091608,0.26800683,120860.0,120850.0,0.11055576]
[1760033091823,0.35641683,120860.0,120850.0,0.11055576]
[1760033093338,0.00103611,120860.0,120850.0,0.40185961]
[1760033093544,0.16651683,120860.0,120850.0,0.38531017]
[1760033093746,0.00103611,120860.0,120850.0,0.62607017]
[1760033094389,0.16651683,120860.0,120850.0,0.62607017]
[1760033095742,0.00103611,120860.0,120850.0,0.38531017]
[1760033095948,0.00103611,120860.0,120850.0,0.62607017]
[1760033096169,0.16651683,120860.0,120850.0,0.62607017]
[1760033096603,0.00103611,120860.0,120850.0,0.62607017]
[1760033096801,0.10252611,120860.0,120850.0,0.33363017]
[1760033097001,0.35641683,120860.0,120850.0,0.08320576]
[1760033097626,0.35641683,120860.0,120850.0,8.37e-05]
[1760033098119,0.59713683,120860.0,120850.0,8.37e-05]
[1760033100249,0.35641683,120860.0,120850.0,8.37e-05]
[1760033100455,0.59713683,120860.0,120850.0,8.37e-05]
[1760033101876,0.35641683,120860.0,120850.0,8.37e-05]
[1760033102083,0.59713683,120860.0,120850.0,8.37e-05]
[1760033102685,0.35641683,120860.0,120850.0,8.37e-05]
[1760033102891,0.59713683,120860.0,120850.0,8.37e-05]
[1760033103095,1.02862258,120860.0,120850.0,8.37e-05]
[1760033103296,1.10861938,120860.0,120850.0,8.37e-05]
[1760033103646,1.12409793,120860.0,120850.0,8.37e-05]
[1760033103920,1.22341793,120860.0,120850.0,8.37e-05]
[1760033104134,0.95257538,120860.0,120850.0,8.37e-05]
[1760033104760,0.71189538,120860.0,120850.0,8.37e-05]
[1760033105008,0.52416538,120860.0,120850.0,0.0825537]
[1760033105212,0.26800683,120860.0,120850.0,0.0825537]
[1760033105415,0.26800683,120860.0,120850.0,0.33117017]
[1760033105618,0.00103611,120860.0,120850.0,0.33117017]
[1760033105819,0.16651683,120860.0,120850.0,0.33117017]
[1760033106026,0.16651683,120860.0,120850.0,0.16567576]
[1760033106239,0.16651683,120860.0,120850.0,0.33117017]
[1760033106423,0.16651683,120860.0,120850.0,0.16567576]
[1760033106843,0.34955683,120860.0,120850.0,0.08320576]
[1760033107267,0.50645683,120860.0,120850.0,0.16567576]
[1760033107502,0.16651683,120860.0,120850.0,0.33117017]
[1760033108136,0.16651683,120860.0,120850.0,0.16567576]
[1760033108933,0.16651683,120860.0,120850.0,0.33117017]
[1760033109137,0.16651683,120860.0,120850.0,0.16567576]
[1760033109926,0.16651683,120860.0,120850.0,0.38134017]
[1760033110567,0.16651683,120860.0,120850.0,0.45648576]
[1760033110950,0.16651683,120860.0,120850.0,0.16567576]
[1760033111377,0.00103611,120860.0,120850.0,0.16567576]
[1760033111599,0.16651683,120860.0,120850.0,0.33117017]
[1760033112828,0.16651683,120860.0,120850.0,0.16567576]
[1760033112994,0.16651683,120860.0,120850.0,0.33117017]
[1760033113619,0.16651683,120860.0,120850.0,0.16567576]
[1760033114261,0.16651683,120860.0,120850.0,0.33117017]
[1760033114674,0.16651683,120860.0,120850.0,0.16567576]
[1760033115863,0.16651683,120860.0,120850.0,0.38134017]
[1760033116562,0.00103611,120860.0,120850.0,0.38134017]
[1760033116774,0.00103611,120860.0,120850.0,0.62194017]
[1760033116995,0.00103611,120860.0,120850.0,0.75149207]
[1760033117217,0.00103611,120860.0,120850.0,0.99209207]
[1760033117670,0.00103611,120860.0,120850.0,1.01692339]
[1760033117892,0.00103611,120860.0,120850.0,1.01792339]
[1760033118488,0.00103611,120860.0,120850.0,1.01692339]
[1760033118693,0.00103611,120860.0,120850.0,1.01792339]
[1760033118907,0.00103611,120860.0,120850.0,1.01892339]
[1760033119163,0.00103611,120860.0,120850.0,1.01792339]
[1760033119367,0.00103611,120860.0,120850.0,0.77832339]
[1760033119580,0.00103611,120860.0,120850.0,1.01888339]
[1760033119789,0.00103611,120860.0,120850.0,0.77832339]
[1760033119997,0.00103611,120860.0,120850.0,1.10488339]
[1760033121212,0.00103611,120860.0,120850.0,1.01888339]
[1760033121431,0.00103611,120860.0,120850.0,1.10488339]
[1760033121653,0.00103611,120860.0,120850.0,0.77832339]
[1760033121838,0.00103611,120860.0,120850.0,0.86432339]
[1760033122060,0.00103611,120860.0,120850.0,1.10288339]
[1760033122272,0.00103611,120860.0,120850.0,1.10284339]
[1760033122474,0.00103611,120860.0,120850.0,1.10384339]
[1760033123331,0.00103611,120860.0,120850.0,1.10484339]
[1760033127194,0.00103611,120860.0,120850.0,1.10480339]
[1760033128335,0.06619503,120890.0,120880.0,0.16545334]
[1760033128517,0.06619503,120890.0,120880.0,0.5118654]
[1760033128673,0.06619503,120890.0,120880.0,0.6171554]
[1760033128894,0.06774869,120890.0,120880.0,0.6171554]
[1760033129500,0.00155366,120890.0,120880.0,0.6171554]
[1760033129704,0.16699331,120890.0,120880.0,0.68074261]
[1760033130343,0.22478331,120890.0,120880.0,0.22463927]
[1760033130543,0.26625331,120890.0,120880.0,0.46511927]
[1760033131129,0.26625331,120890.0,120880.0,0.34641206]
[1760033131329,0.26625331,120890.0,120880.0,0.11739752]
[1760033131539,0.26625331,120890.0,120880.0,0.57845086]
[1760033132138,0.26625331,120890.0,120880.0,0.40149206]
[1760033132344,0.16546703,120870.0,120850.0,0.0274337]
[1760033132576,0.16546703,120870.0,120860.0,0.48904278]
[1760033132768,0.16546703,120870.0,120860.0,0.55617984]
[1760033132967,0.16598501,120870.0,120860.0,0.39069912]
[1760033133220,0.34467501,120870.0,120860.0,0.08312206]
[1760033140203,0.58511501,120870.0,120860.0,0.08312206]
[1760033140423,0.34467501,120870.0,120860.0,0.08312206]
[1760033140633,0.16548072,120860.0,120850.0,8.37e-05]
[1760033140844,0.20605072,120860.0,120850.0,0.08320576]
[1760033141046,0.26123072,120860.0,120850.0,0.08320576]
[1760033141255,0.34417072,120860.0,120850.0,0.08320576]
[1760033141825,0.16598501,120870.0,120850.0,0.38017017]
[1760033142024,0.16598501,120870.0,120860.0,0.08312206]
[1760033142719,0.16598501,120870.0,120860.0,0.13868206]
[1760033143210,0.22116501,120870.0,120860.0,0.13868206]
[1760033143888,0.22116501,120870.0,120860.0,0.08312206]
[1760033143889,0.34467501,120870.0,120860.0,0.08312206]
[1760033144913,0.20655501,120870.0,120860.0,0.13868206]
[1760033145119,0.16598501,120870.0,120860.0,0.13868206]
[1760033145843,0.22042501,120870.0,120860.0,0.13868206]
[1760033146236,0.26456501,120870.0,120860.0,0.13654206]
[1760033146386,0.21012501,120870.0,120860.0,0.13654206]
[1760033146596,0.26456501,120870.0,120860.0,0.13654206]
[1760033148022,0.16598501,120870.0,120860.0,0.30202278]
[1760033148161,0.16598501,120870.0,120860.0,0.13654206]
[1760033148837,0.00051798,120870.0,120860.0,0.34910278]
[1760033149038,0.00051798,120870.0,120860.0,0.58950278]
[1760033150095,0.00051798,120870.0,120860.0,0.34910278]
[1760033150362,0.00051798,120870.0,120860.0,0.71925468]
[1760033150545,0.00051798,120870.0,120860.0,0.95433566]
[1760033150914,0.00051798,120870.0,120860.0,0.71393566]
[1760033151119,0.00051798,120870.0,120860.0,0.95433566]
[1760033151329,0.00051798,120870.0,120860.0,0.95633566]
[1760033152154,0.00051798,120870.0,120860.0,0.71593566]
[1760033152362,0.00051798,120870.0,120860.0,1.04229566]
[1760033154157,0.00051798,120870.0,120860.0,0.95629566]
[1760033154374,0.00051798,120870.0,120860.0,1.04229566]
[1760033155859,0.00051798,120870.0,120860.0,0.71593566]
[1760033156045,0.00051798,120870.0,120860.0,0.90921566]
[1760033156458,0.00051798,120870.0,120860.0,0.95629566]
[1760033156873,0.00051798,120870.0,120860.0,0.71593566]
[1760033157100,0.00051798,120870.0,120860.0,0.93142278]
[1760033157651,0.16598501,120870.0,120860.0,0.59142278]
[1760033157871,0.26456501,120870.0,120860.0,0.13854206]
[1760033158092,0.34529501,120870.0,120860.0,0.32544206]
[1760033158478,0.34529501,120870.0,120860.0,0.08512206]
[1760033158706,0.26456501,120870.0,120860.0,0.08512206]
[1760033158908,0.34529501,120870.0,120860.0,0.08512206]
[1760033161262,0.26456501,120870.0,120860.0,0.13854206]
[1760033162293,0.34529501,120870.0,120860.0,0.002]
[1760033162499,0.66509199,120870.0,120860.0,0.002]
[1760033162909,0.58557501,120870.0,120860.0,0.002]
[1760033163320,0.16548072,120860.0,120850.0,8.37e-05]
[1760033163532,0.20691072,120860.0,120850.0,8.37e-05]
[1760033163883,0.34353072,120860.0,120850.0,8.37e-05]
[1760033164097,0.58381072,120860.0,120850.0,8.37e-05]
[1760033164295,0.34353072,120860.0,120850.0,8.37e-05]
[1760033164509,0.34353072,120860.0,120850.0,0.16124576]
[1760033164510,0.50101072,120860.0,120850.0,0.16124576]
[1760033164958,0.26073072,120860.0,120850.0,0.16124576]
[1760033165550,0.16598501,120870.0,120850.0,0.37234017]
[1760033165761,0.16598501,120870.0,120860.0,0.08312206]
[1760033166185,0.16598501,120870.0,120860.0,0.13677206]
[1760033167633,0.21980501,120870.0,120860.0,0.13677206]
[1760033168546,0.34403501,120870.0,120860.0,0.08312206]
[1760033169737,0.58427501,120870.0,120860.0,0.08312206]
[1760033170470,0.16548072,120860.0,120850.0,8.37e-05]
[1760033170718,0.44715072,120860.0,120850.0,8.37e-05]
[1760033170918,0.58377072,120860.0,120850.0,8.37e-05]
[1760033174746,0.34353072,120860.0,120850.0,8.37e-05]
[1760033174954,0.58377072,120860.0,120850.0,8.37e-05]
[1760033175587,0.34353072,120860.0,120850.0,0.08320576]
[1760033175811,0.26073072,120860.0,120850.0,0.16124576]
[1760033176240,0.26073072,120860.0,120850.0,0.10759576]
[1760033177566,0.58377072,120860.0,120850.0,0.08320576]
[1760033178048,0.58373072,120860.0,120850.0,8.37e-05]
[1760033181927,0.1655081,120840.0,120830.0,0.42667491]
[1760033182121,0.2193281,120840.0,120830.0,0.38973329]
[1760033182580,0.2607581,120840.0,120830.0,0.39025149]
[1760033183454,0.2607581,120840.0,120830.0,0.39125149]
[1760033184003,0.2607581,120840.0,120830.0,0.55677329]
[1760033184201,0.1655081,120840.0,120830.0,0.55777329]
[1760033184718,0.1655081,120840.0,120830.0,0.35464329]
[1760033189120,0.1655081,120840.0,120830.0,0.15205149]
[1760033189436,0.1655081,120840.0,120830.0,0.31757329]
[1760033189691,0.1655081,120840.0,120830.0,0.15205149]
[1760033189859,0.1655081,120840.0,120830.0,0.39217149]
[1760033190369,0.1655081,120840.0,120830.0,0.55769329]
[1760033193009,0.2575681,120840.0,120830.0,0.39217149]
[1760033193742,0.2054181,120840.0,120830.0,0.39217149]
[1760033194126,0.2054181,120840.0,120830.0,0.15205149]
[1760033194332,0.2575681,120840.0,120830.0,0.39217149]
[1760033194944,0.72083054,120840.0,120830.0,0.08572396]
[1760033195159,0.88136659,120840.0,120830.0,0.08572396]
[1760033195565,0.88136659,120840.0,120830.0,0.08472396]
[1760033196020,1.18495508,120840.0,120830.0,0.0016019]
[1760033196238,1.61099508,120840.0,120830.0,0.0006019]
[1760033197070,0.16556291,120800.0,120790.0,0.00984]
[1760033197282,0.20547291,120800.0,120790.0,0.09346705]
[1760033197490,0.33775291,120800.0,120790.0,0.08362705]